fUST/lending_fUST_20250214
["ID","MTS","AMOUNT","RATE_DAILY","PERIOD"]
[353042503,1739514638277,-500.0,0.00013799,2]
[353042504,1739514638287,-500.0,0.00013799,2]
[353042505,1739514638297,-500.0,0.00013799,2]
[353042506,1739514638307,-561.31,0.00013799,2]
[353042507,1739514638316,-500.0,0.00013799,2]
[353042508,1739514638326,-377.61957361,0.00013799,2]
[353042509,1739514638339,-122.38042639,0.00013799,2]
[353042510,1739514638348,-431.73364247,0.00013799,2]
[353042511,1739514638427,-119.9176503,0.00013799,2]
[353042512,1739514638438,-3604.72,0.00013799,2]
[353042513,1739514638448,-603.88,0.00013799,2]
[353042514,1739514638458,-500.0,0.00013799,2]
[353042515,1739514638467,-873.42,0.00013799,2]
[353042516,1739514638477,-2715.36,0.00013799,2]
[353042517,1739514638487,-6865.04,0.00013799,2]
[353042518,1739514638497,-500.0,0.00013799,2]
[353042519,1739514638506,-668.62,0.00013799,2]
[353042520,1739514638516,-1962.85,0.00013799,2]
[353042521,1739514638526,-5793.67196216,0.000138,5]
[353042522,1739514638535,-1886.17818022,0.000138,5]
[353042523,1739514638547,-468030.45237801,0.000138,2]
[353042524,1739514638557,-950.76922779,0.00013866,2]
[353042525,1739514638567,-515.29,0.00013881,2]
[353042526,1739514638577,-500.0,0.00013881,2]
[353042527,1739514638587,-500.0,0.00013881,2]
[353042528,1739514638597,-500.0,0.00013881,2]
[353042529,1739514638607,-500.0,0.00013881,2]
[353042530,1739514638617,-525.43,0.00013881,2]
[353042531,1739514638627,-500.0,0.00013881,2]
[353042532,1739514638636,-572.33,0.00013881,2]
[353042533,1739514638646,-500.0,0.00013881,2]
[353042534,1739514638656,-283.73206782,0.00013881,2]
[353042535,1739514638667,-500.0,0.00013881,2]
[353042536,1739514638676,-561.31,0.00013881,2]
[353042537,1739514638687,-500.0,0.00013881,2]
[353042538,1739514638697,-3604.72,0.00013881,2]
[353042539,1739514638707,-603.88,0.00013881,2]
[353042540,1739514638717,-500.0,0.00013881,2]
[353042541,1739514638726,-873.42,0.00013881,2]
[353042542,1739514638735,-2715.36,0.00013881,2]
[353042543,1739514638744,-6865.04,0.00013881,2]
[353042544,1739514638754,-500.0,0.00013881,2]
[353042545,1739514638763,-668.62,0.00013881,2]
[353042546,1739514638772,-1962.85,0.00013881,2]
[353042547,1739514638782,-950.76922779,0.00013894,2]
[353042548,1739514638792,-151.0,0.000139,2]
[353042549,1739514638802,-151.0,0.000139,2]
[353042550,1739514638811,-950.76922779,0.00013922,2]
[353042551,1739514638820,-950.76922779,0.00013951,2]
[353042552,1739514638830,-515.29,0.00013964,2]
[353042553,1739514638839,-500.0,0.00013964,2]
[353042554,1739514638848,-500.0,0.00013964,2]
[353042555,1739514638858,-500.0,0.00013964,2]
[353042556,1739514638867,-500.0,0.00013964,2]
[353042557,1739514638877,-525.43,0.00013964,2]
[353042558,1739514638886,-500.0,0.00013964,2]
[353042559,1739514638897,-572.33,0.00013964,2]
[353042560,1739514638907,-500.0,0.00013964,2]
[353042561,1739514638918,-500.0,0.00013964,2]
[353042562,1739514638929,-561.31,0.00013964,2]
[353042563,1739514638939,-500.0,0.00013964,2]
[353042564,1739514638948,-3604.72,0.00013964,2]
[353042565,1739514638959,-603.88,0.00013964,2]
[353042566,1739514638969,-500.0,0.00013964,2]
[353042567,1739514638979,-873.42,0.00013964,2]
[353042568,1739514638989,-2715.36,0.00013964,2]
[353042569,1739514638998,-6865.04,0.00013964,2]
[353042570,1739514639008,-500.0,0.00013964,2]
[353042571,1739514639017,-668.62,0.00013964,2]
[353042572,1739514639026,-1962.85,0.00013964,2]
[353042573,1739514639036,-3273.51875229,0.00013979,2]
[353042574,1739514639046,-950.76922779,0.00013979,2]
[353042575,1739514639055,-1162.34928517,0.00013979,2]
[353042576,1739514639064,-1000.0,0.00014,14]
[353042577,1739514639076,-1000.0,0.00014,3]
[353042578,1739514639086,-151.0,0.00014,2]
[353042579,1739514639095,-151.0,0.00014,2]
[353042580,1739514639104,-151.0,0.00014,2]
[353042581,1739514639115,-515.29,0.00014046,2]
[353042582,1739514639124,-500.0,0.00014046,2]
[353042583,1739514639133,-500.0,0.00014046,2]
[353042584,1739514639142,-500.0,0.00014046,2]
[353042585,1739514639152,-500.0,0.00014046,2]
[353042586,1739514639162,-525.43,0.00014046,2]
[353042587,1739514639171,-443.71567212,0.00014046,2]
[353042588,1739514639181,-572.33,0.00014046,2]
[353042589,1739514639191,-500.0,0.00014046,2]
[353042590,1739514639200,-546.7940582,0.00014046,2]
[353042591,1739514639210,-561.31,0.00014046,2]
[353042592,1739514639219,-500.0,0.00014046,2]
[353042593,1739514639228,-3604.72,0.00014046,2]
[353042594,1739514639239,-603.88,0.00014046,2]
[353042595,1739514639248,-500.0,0.00014046,2]
[353042596,1739514639259,-873.42,0.00014046,2]
[353042597,1739514639270,-2715.36,0.00014046,2]
[353042598,1739514639279,-6865.04,0.00014046,2]
[353042599,1739514639289,-500.0,0.00014046,2]
[353042600,1739514639298,-668.62,0.00014046,2]
[353042601,1739514639307,-1962.85,0.00014046,2]
[353042602,1739514639317,-500.0,0.00014073,2]
[353042603,1739514639326,-501.25242152,0.00014073,2]
[353042604,1739514639336,-500.0,0.00014073,2]
[353042605,1739514639346,-500.0,0.00014073,2]
[353042606,1739514639356,-160.0,0.00014077,2]
[353042607,1739514639374,-500.0,0.00014078,2]
[353042608,1739514639387,-500.0,0.00014078,2]
[353042609,1739514639397,-500.0,0.00014078,2]
[353042610,1739514639406,-500.0,0.00014078,2]
[353042611,1739514639416,-500.0,0.00014078,2]
[353042612,1739514639426,-500.0,0.00014078,2]
[353042613,1739514639436,-379.2,0.00014078,2]
[353042614,1739514639446,-500.0,0.00014078,2]
[353042615,1739514639455,-363.8,0.00014078,2]
[353042616,1739514639466,-500.0,0.00014078,2]
[353042617,1739514639476,-500.0,0.00014078,2]
[353042618,1739514639486,-528.16,0.00014078,2]
[353042619,1739514639496,-435.06,0.00014078,2]
[353042620,1739514639506,-500.0,0.00014078,2]
[353042621,1739514639515,-500.0,0.00014078,2]
[353042622,1739514639525,-500.0,0.00014078,2]
[353042623,1739514639535,-160.0,0.00014078,2]
[353042624,1739514639545,-500.0,0.00014078,2]
[353042625,1739514639554,-267.49617481,0.00014078,2]
[353042626,1739514639564,-500.0,0.00014078,2]
[353042627,1739514639573,-506.05617852,0.00014078,2]
[353042628,1739514639583,-500.0,0.00014078,2]
[353042629,1739514639593,-531.58570829,0.00014078,2]
[353042630,1739514639603,-500.0,0.00014078,2]
[353042631,1739514639613,-541.61214716,0.00014078,2]
[353042632,1739514639623,-500.0,0.00014078,2]
[353042633,1739514639633,-229.12850301,0.00014078,2]
[353042634,1739514639642,-1260623.80185972,0.00014079,5]
[353042644,1739514640552,-353.76211186,0.00014079,5]
[353042660,1739514643408,-24.38366407,0.00013799,2]
[353042661,1739514643534,-475.61633593,0.00013799,2]
[353042662,1739514643544,-500.0,0.00013881,2]
[353042663,1739514643554,-628489.05141608,0.00014079,5]
[353042681,1739514646358,-347.68390049,0.00013964,2]
[353042683,1739514646369,-306693.61553013,0.00014079,5]
[353042686,1739514697316,1000.0,0.00016,120]
[353042687,1739514707305,1000.0,0.00016,120]
[353042745,1739515832865,-189.62822,0.00010685,2]
[353042747,1739515832875,-162.406052,0.00013699,2]
[353042749,1739515832885,-153.26410622,0.00013795,2]
[353042752,1739515832900,-146.73589378,0.00013795,2]
[353042754,1739515832910,-500.0,0.00013796,2]
[353042756,1739515832919,-500.0,0.00013796,2]
[353042758,1739515832928,-500.0,0.00013796,2]
[353042760,1739515832937,-500.0,0.00013796,2]
[353042762,1739515832946,-500.0,0.00013796,2]
[353042764,1739515832957,-500.0,0.00013796,2]
[353042766,1739515832966,-500.0,0.00013796,2]
[353042768,1739515832977,-569.4,0.00013796,2]
[353042770,1739515832987,-500.0,0.00013796,2]
[353042772,1739515832996,-500.0,0.00013796,2]
[353042775,1739515833005,-555.31165305,0.00013796,2]
[353042777,1739515833014,-500.0,0.00013796,2]
[353042779,1739515833024,-500.0,0.00013796,2]
[353042781,1739515833033,-615.04,0.00013796,2]
[353042784,1739515833042,-500.0,0.00013796,2]
[353042787,1739515833051,-500.0,0.00013796,2]
[353042790,1739515833060,-500.0,0.00013796,2]
[353042793,1739515833069,-500.0,0.00013796,2]
[353042796,1739515833079,-500.0,0.00013796,2]
[353042799,1739515833089,-500.0,0.00013796,2]
[353042802,1739515833098,-463.15973169,0.00013796,2]
[353042805,1739515833110,-36.84026831,0.00013796,2]
[353042808,1739515833119,-500.0,0.00013796,2]
[353042811,1739515833129,-500.0,0.00013796,2]
[353042814,1739515833138,-500.0,0.00013796,2]
[353042816,1739515833147,-500.0,0.00013796,2]
[353042819,1739515833156,-781.44420134,0.00013796,2]
[353042874,1739515838434,-173.57579866,0.00013796,2]
[353042875,1739515838447,-616.36028558,0.00013796,2]
[353042876,1739515838462,-76.92971442,0.00013796,2]
[353042877,1739515838475,-854.73028558,0.00013796,2]
[353042878,1739515838501,-2012.34971442,0.00013796,2]
[353042879,1739515838514,-500.0,0.00013796,2]
[353042880,1739515838526,-3000.0,0.00013796,30]
[353042881,1739515838538,-500.0,0.00013796,2]
[353042882,1739515838553,-7491.65,0.00013796,2]
[353042883,1739515838567,-628.08,0.00013796,2]
[353042884,1739515838580,-737.62,0.00013796,2]
[353042885,1739515838592,-500.0,0.00013796,2]
[353042886,1739515838605,-500.0,0.00013796,2]
[353042887,1739515838618,-500.0,0.00013796,2]
[353042888,1739515838630,-500.0,0.00013797,2]
[353042889,1739515838643,-500.0,0.00013797,2]
[353042890,1739515838655,-575.08,0.00013797,2]
[353042891,1739515838667,-500.0,0.00013797,2]
[353042892,1739515838680,-500.0,0.00013797,2]
[353042893,1739515838690,-500.0,0.00013797,2]
[353042894,1739515838703,-160.67942007,0.00013797,2]
[353042895,1739515838715,-500.0,0.00013797,2]
[353042896,1739515838725,-500.0,0.00013797,2]
[353042897,1739515838737,-500.0,0.00013797,2]
[353042898,1739515838750,-500.0,0.00013797,2]
[353042899,1739515838762,-321.01206301,0.00013797,2]
[353042900,1739515838776,-178.98793699,0.00013797,2]
[353042901,1739515838788,-283.8489489,0.00013797,2]
[353042902,1739515838802,-216.1510511,0.00013797,2]
[353042903,1739515838814,-500.0,0.00013797,2]
[353042904,1739515838826,-500.0,0.00013797,2]
[353042905,1739515838839,-507.00901843,0.00013797,2]
[353042906,1739515838852,-500.0,0.00013797,2]
[353042907,1739515838863,-225.90919238,0.00013797,2]
[353042908,1739515838876,-500.0,0.00013797,2]
[353042909,1739515838887,-500.0,0.00013797,2]
[353042910,1739515838897,-500.0,0.00013797,2]
[353042911,1739515838908,-500.0,0.00013797,2]
[353042912,1739515838918,-3811.34,0.00013797,2]
[353042913,1739515838930,-500.0,0.00013797,2]
[353042914,1739515838942,-500.0,0.00013797,2]
[353042915,1739515838954,-500.0,0.00013797,2]
[353042916,1739515838967,-2287.26,0.00013797,2]
[353042917,1739515838982,-500.0,0.00013798,2]
[353042918,1739515838994,-500.0,0.00013799,2]
[353042919,1739515839006,-567.33944001,0.00013799,2]
[353042920,1739515839017,-178.15,0.00013799,2]
[353042921,1739515839029,-500.0,0.00013799,2]
[353042922,1739515839041,-192.33729865,0.00013799,2]
[353042923,1739515839052,-635.76698777,0.00013799,2]
[353042924,1739515839065,-528.7,0.00013799,2]
[353042925,1739515839075,-500.0,0.00013799,2]
[353042926,1739515839087,-256.02895938,0.00013799,2]
[353042927,1739515839098,-353.76211186,0.00013799,2]
[353042928,1739515839110,-189.00704725,0.00013799,2]
[353042929,1739515839120,-500.0,0.00013799,2]
[353042930,1739515839131,-502.33920125,0.00013799,2]
[353042931,1739515839141,-347.220618,0.00013799,2]
[353042932,1739515839152,-500.0,0.00013799,2]
[353042933,1739515839163,-174.71229447,0.00013799,2]
[353042934,1739515839177,-504.3817157,0.00013799,2]
[353042935,1739515839188,-500.0,0.00013799,2]
[353042936,1739515839199,-500.0,0.00013799,2]
[353042937,1739515839211,-500.0,0.00013799,2]
[353042938,1739515839222,-504.90521883,0.00013799,2]
[353042939,1739515839233,-500.0,0.00013799,2]
[353042940,1739515839244,-500.0,0.00013799,2]
[353042941,1739515839255,-213.26041955,0.00013799,2]
[353042942,1739515839267,-500.0,0.00013799,2]
[353042943,1739515839278,-200.0,0.000138,3]
[353042944,1739515839289,-200.0,0.000138,4]
[353042945,1739515839300,-200.0,0.000138,5]
[353042946,1739515839311,-270.7124616,0.00013864,2]
[353042947,1739515839322,-500.0,0.00013878,2]
[353042948,1739515839333,-500.0,0.00013878,2]
[353042949,1739515839344,-500.0,0.00013878,2]
[353042950,1739515839355,-500.0,0.00013878,2]
[353042951,1739515839366,-500.0,0.00013878,2]
[353042952,1739515839377,-500.0,0.00013878,2]
[353042953,1739515839387,-569.4,0.00013878,2]
[353042954,1739515839399,-500.0,0.00013878,2]
[353042955,1739515839410,-500.0,0.00013878,2]
[353042956,1739515839421,-500.0,0.00013878,2]
[353042957,1739515839431,-500.0,0.00013878,2]
[353042958,1739515839442,-615.04,0.00013878,2]
[353042959,1739515839453,-500.0,0.00013878,2]
[353042960,1739515839464,-500.0,0.00013878,2]
[353042961,1739515839475,-500.0,0.00013878,2]
[353042962,1739515839486,-500.0,0.00013878,2]
[353042963,1739515839496,-500.0,0.00013878,2]
[353042964,1739515839508,-500.0,0.00013878,2]
[353042965,1739515839519,-955.02,0.00013878,2]
[353042966,1739515839529,-693.29,0.00013878,2]
[353042967,1739515839539,-2867.08,0.00013878,2]
[353042968,1739515839550,-500.0,0.00013878,2]
[353042969,1739515839561,-3000.0,0.00013878,30]
[353042970,1739515839574,-7491.65,0.00013878,2]
[353042971,1739515839586,-628.08,0.00013878,2]
[353042972,1739515839598,-737.62,0.00013878,2]
[353042973,1739515839608,-500.0,0.00013878,2]
[353042974,1739515839619,-500.0,0.00013878,2]
[353042975,1739515839630,-500.0,0.00013878,2]
[353042976,1739515839640,-500.0,0.0001388,2]
[353042977,1739515839651,-599.9416146,0.0001388,2]
[353042978,1739515839661,-500.0,0.0001388,2]
[353042979,1739515839673,-500.0,0.0001388,2]
[353042980,1739515839684,-500.0,0.0001388,2]
[353042981,1739515839694,-500.0,0.0001388,2]
[353042982,1739515839704,-500.0,0.0001388,2]
[353042983,1739515839717,-3811.34,0.0001388,2]
[353042984,1739515839727,-500.0,0.0001388,2]
[353042985,1739515839741,-500.0,0.0001388,2]
[353042986,1739515839752,-500.0,0.0001388,2]
[353042987,1739515839763,-2287.26,0.0001388,2]
[353042988,1739515839774,-585.41037214,0.00013881,2]
[353042989,1739515839785,-500.0,0.00013881,2]
[353042990,1739515839797,-9869.22482394,0.00013894,2]
[353042991,1739515839953,-500.0,0.00013961,2]
[353042992,1739515839964,-500.0,0.00013961,2]
[353042993,1739515839973,-640.04672086,0.00013961,2]
[353042994,1739515839985,-500.0,0.00013961,2]
[353042995,1739515839995,-343.06,0.00013961,2]
[353042996,1739515840005,-500.0,0.00013961,2]
[353042997,1739515840015,-569.4,0.00013961,2]
[353042998,1739515840026,-500.0,0.00013961,2]
[353042999,1739515840036,-500.0,0.00013961,2]
[353043000,1739515840045,-500.0,0.00013961,2]
[353043001,1739515840055,-500.0,0.00013961,2]
[353043002,1739515840065,-615.04,0.00013961,2]
[353043003,1739515840076,-500.0,0.00013961,2]
[353043004,1739515840088,-500.0,0.00013961,2]
[353043005,1739515840097,-500.0,0.00013961,2]
[353043006,1739515840108,-500.0,0.00013961,2]
[353043007,1739515840118,-500.0,0.00013961,2]
[353043008,1739515840127,-500.0,0.00013961,2]
[353043009,1739515840138,-955.02,0.00013961,2]
[353043010,1739515840147,-693.29,0.00013961,2]
[353043011,1739515840158,-2867.08,0.00013961,2]
[353043012,1739515840168,-203.59260366,0.00013961,2]
[353043013,1739515840179,-3000.0,0.00013961,30]
[353043014,1739515840190,-7491.65,0.00013961,2]
[353043015,1739515840202,-628.08,0.00013961,2]
[353043016,1739515840214,-737.62,0.00013961,2]
[353043017,1739515840224,-500.0,0.00013961,2]
[353043018,1739515840236,-608.72839093,0.00013961,2]
[353043019,1739515840245,-500.0,0.00013961,2]
[353043020,1739515840257,-503.27807468,0.00013962,2]
[353043021,1739515840268,-500.0,0.00013962,2]
[353043022,1739515840284,-500.0,0.00013962,2]
[353043023,1739515840297,-500.0,0.00013962,2]
[353043024,1739515840307,-241.74,0.00013962,2]
[353043025,1739515840317,-3811.34,0.00013962,2]
[353043026,1739515840326,-500.0,0.00013962,2]
[353043027,1739515840336,-500.0,0.00013962,2]
[353043028,1739515840345,-2287.26,0.00013962,2]
[353043029,1739515840355,-500.0,0.00013964,2]
[353043030,1739515840365,-9986.60847344,0.00013973,2]
[353043031,1739515840474,-5476.3681734,0.00013973,2]
[353043032,1739515840486,-3000.0,0.00013979,2]
[353043033,1739515840496,-3231.86964679,0.00013979,2]
[353043034,1739515840505,-200.0,0.00013998,2]
[353043035,1739515840514,-200.0,0.00014,6]
[353043036,1739515840524,-200.0,0.00014,7]
[353043037,1739515840533,-187.85056938,0.00014,6]
[353043038,1739515840545,-12.14943062,0.00014,6]
[353043039,1739515840555,-200.0,0.00014,5]
[353043040,1739515840565,-410.71342538,0.00014,2]
[353043041,1739515840577,-9460.63835381,0.00014,2]
[353043042,1739515840595,-978.75395275,0.00014,2]
[353043043,1739515840606,-2489.515304,0.00014,2]
[353043044,1739515840618,-773.5743532,0.00014,2]
[353043045,1739515840630,-413.300005,0.00014,2]
[353043046,1739515840641,-575.6874976,0.00014,2]
[353043047,1739515840855,-500.0,0.00013796,2]
[353043048,1739515840868,-500.0,0.00013878,2]
[353043049,1739515840880,-387.91857799,0.00013961,2]
[353043050,1739515840892,-2328.81114215,0.00014,2]
[353043051,1739515840902,-9913.0,0.00014,2]
[353043052,1739515840913,-289.93608424,0.00014042,2]
[353043053,1739515840925,-500.0,0.00014043,2]
[353043054,1739515840935,-500.0,0.00014043,2]
[353043055,1739515840945,-500.0,0.00014043,2]
[353043056,1739515840956,-500.0,0.00014043,2]
[353043057,1739515840966,-569.4,0.00014043,2]
[353043058,1739515840977,-500.0,0.00014043,2]
[353043059,1739515840987,-500.0,0.00014043,2]
[353043060,1739515840996,-500.0,0.00014043,2]
[353043061,1739515841009,-500.0,0.00014043,2]
[353043062,1739515841018,-615.04,0.00014043,2]
[353043063,1739515841028,-500.0,0.00014043,2]
[353043064,1739515841038,-500.0,0.00014043,2]
[353043065,1739515841049,-500.0,0.00014043,2]
[353043066,1739515841059,-500.0,0.00014043,2]
[353043067,1739515841070,-290.2051247,0.00014043,2]
[353043068,1739515841081,-955.02,0.00014043,2]
[353043069,1739515841092,-693.29,0.00014043,2]
[353043070,1739515841103,-2867.08,0.00014043,2]
[353043071,1739515841114,-3000.0,0.00014043,30]
[353043072,1739515841123,-7491.65,0.00014043,2]
[353043073,1739515841134,-628.08,0.00014043,2]
[353043074,1739515841144,-737.62,0.00014043,2]
[353043075,1739515841156,-500.0,0.00014043,2]
[353043076,1739515841166,-500.0,0.00014043,2]
[353043077,1739515841181,-500.0,0.00014044,2]
[353043078,1739515841192,-500.0,0.00014044,2]
[353043079,1739515841204,-427.49702275,0.00014044,2]
[353043080,1739515841215,-3811.34,0.00014044,2]
[353043081,1739515841226,-500.0,0.00014044,2]
[353043082,1739515841236,-531.24211186,0.00014044,2]
[353043083,1739515841246,-2287.26,0.00014044,2]
[353043084,1739515841255,-500.0,0.00014046,2]
[353043085,1739515841266,-500.0,0.00014078,2]
[353043086,1739515841276,-160.0,0.00014078,2]
[353043087,1739515841287,-160.39082223,0.00014078,2]
[353043088,1739515841297,-2896.83598108,0.00014079,5]
[353043089,1739515841308,-943.08909011,0.00014079,5]
[353043090,1739515841319,-110868.45204196,0.00014079,5]
[353043106,1739515846719,-500.0,0.00014079,5]
[353043107,1739515846732,-37572.90537168,0.00014079,5]
[353043131,1739517032861,-180.146809,0.00010685,2]
[353043132,1739517032870,-162.406052,0.00013699,2]
[353043133,1739517032880,-217.99375409,0.00013777,2]
[353043134,1739517032890,-300.0,0.00013792,2]
[353043135,1739517032899,-709.01,0.00013793,2]
[353043136,1739517032909,-500.0,0.00013793,2]
[353043137,1739517032919,-331.90511303,0.00013793,2]
[353043138,1739517032939,-168.09488697,0.00013793,2]
[353043139,1739517032949,-500.0,0.00013793,2]
[353043140,1739517032959,-1046.7,0.00013793,2]
[353043141,1739517032969,-500.0,0.00013793,2]
[353043143,1739517032979,-320.61777566,0.00013793,2]
[353043145,1739517032988,-500.0,0.00013794,2]
[353043147,1739517032998,-676.12,0.00013794,2]
[353043148,1739517033007,-500.0,0.00013794,2]
[353043149,1739517033017,-500.0,0.00013794,2]
[353043150,1739517033027,-288.46733737,0.00013794,2]
[353043151,1739517038710,-211.53266263,0.00013794,2]
[353043152,1739517038720,-500.0,0.00013794,2]
[353043153,1739517038731,-500.0,0.00013794,2]
[353043154,1739517038740,-500.0,0.00013794,2]
[353043155,1739517038751,-500.0,0.00013794,2]
[353043156,1739517038761,-500.0,0.00013794,2]
[353043157,1739517038770,-500.0,0.00013794,2]
[353043158,1739517038780,-500.0,0.00013794,2]
[353043159,1739517038790,-500.0,0.00013794,2]
[353043160,1739517038799,-500.0,0.00013794,2]
[353043161,1739517038810,-500.0,0.00013794,2]
[353043162,1739517038819,-725.09,0.00013794,2]
[353043163,1739517038829,-507.63282182,0.00013794,2]
[353043164,1739517038839,-500.0,0.00013794,2]
[353043165,1739517038849,-500.0,0.00013794,2]
[353043166,1739517038860,-500.0,0.00013794,2]
[353043167,1739517038870,-611.35,0.00013794,2]
[353043168,1739517038881,-500.0,0.00013794,2]
[353043169,1739517038891,-500.0,0.00013794,2]
[353043170,1739517038900,-332.89451555,0.00013794,2]
[353043171,1739517038913,-167.10548445,0.00013794,2]
[353043172,1739517038922,-500.0,0.00013794,2]
[353043173,1739517038932,-382.89451556,0.00013794,2]
[353043174,1739517038943,-117.10548444,0.00013794,2]
[353043175,1739517038952,-500.0,0.00013794,2]
[353043176,1739517038962,-500.0,0.00013794,2]
[353043177,1739517038972,-4136.96,0.00013794,2]
[353043178,1739517038981,-500.0,0.00013794,2]
[353043179,1739517038991,-500.0,0.00013794,2]
[353043180,1739517039001,-500.0,0.00013794,2]
[353043181,1739517039010,-500.0,0.00013794,2]
[353043182,1739517039020,-500.0,0.00013794,2]
[353043183,1739517039029,-500.0,0.00013794,2]
[353043184,1739517039039,-500.0,0.00013794,2]
[353043185,1739517039048,-500.0,0.00013794,2]
[353043186,1739517039058,-500.0,0.00013794,2]
[353043187,1739517039067,-500.0,0.00013794,2]
[353043188,1739517039077,-500.0,0.00013794,2]
[353043189,1739517039087,-500.0,0.00013794,2]
[353043190,1739517039098,-500.0,0.00013794,2]
[353043191,1739517039108,-500.0,0.00013794,2]
[353043192,1739517039121,-500.0,0.00013794,2]
[353043193,1739517039130,-772.12,0.00013794,2]
[353043194,1739517039140,-2946.52,0.00013794,2]
[353043195,1739517039150,-2417.28,0.00013794,2]
[353043196,1739517039160,-500.0,0.00013794,2]
[353043197,1739517039170,-823.49,0.00013794,2]
[353043198,1739517039179,-500.0,0.00013794,2]
[353043199,1739517039189,-8607.99,0.00013794,2]
[353043200,1739517039199,-500.0,0.00013795,2]
[353043201,1739517039209,-508.29520958,0.00013795,2]
[353043202,1739517039218,-500.0,0.00013795,2]
[353043203,1739517039228,-500.0,0.00013795,2]
[353043204,1739517039238,-500.0,0.00013795,2]
[353043205,1739517039248,-500.0,0.00013795,2]
[353043206,1739517039258,-500.0,0.00013795,2]
[353043207,1739517039268,-500.0,0.00013795,2]
[353043208,1739517039277,-500.0,0.00013795,2]
[353043209,1739517039287,-500.0,0.00013795,2]
[353043210,1739517039296,-500.0,0.00013795,2]
[353043211,1739517039305,-500.0,0.00013795,2]
[353043212,1739517039315,-500.0,0.00013795,2]
[353043213,1739517039325,-500.0,0.00013795,2]
[353043214,1739517039336,-500.0,0.00013795,2]
[353043215,1739517039346,-500.0,0.00013795,2]
[353043216,1739517039355,-500.0,0.00013795,2]
[353043217,1739517039365,-500.0,0.00013795,2]
[353043218,1739517039375,-500.0,0.00013795,2]
[353043219,1739517039384,-500.0,0.00013795,2]
[353043220,1739517039393,-500.0,0.00013795,2]
[353043221,1739517039404,-500.0,0.00013795,2]
[353043222,1739517039414,-500.0,0.00013795,2]
[353043223,1739517039424,-500.0,0.00013795,2]
[353043224,1739517039433,-500.0,0.00013795,2]
[353043225,1739517039443,-500.0,0.00013795,2]
[353043226,1739517039452,-500.0,0.00013795,2]
[353043227,1739517039462,-567.03,0.00013795,2]
[353043228,1739517039471,-500.0,0.00013795,2]
[353043229,1739517039481,-500.0,0.00013795,2]
[353043230,1739517039490,-500.0,0.00013795,2]
[353043231,1739517039500,-500.0,0.00013795,2]
[353043232,1739517039509,-500.0,0.00013795,2]
[353043233,1739517039519,-500.0,0.00013795,2]
[353043234,1739517039528,-522.1428522,0.00013795,2]
[353043235,1739517039538,-500.0,0.00013795,2]
[353043236,1739517039547,-500.0,0.00013795,2]
[353043237,1739517039557,-500.0,0.00013795,2]
[353043238,1739517039566,-500.0,0.00013795,2]
[353043239,1739517039576,-174.81152194,0.00013795,2]
[353043240,1739517039587,-500.0,0.00013795,2]
[353043241,1739517039596,-500.0,0.00013795,2]
[353043242,1739517039605,-500.0,0.00013795,2]